bitfinex/quotes_BTCUSD_20220120
["timestamp","ask_amount","ask_price","bid_price","bid_amount"]
[1642700843141,0.423,43112.0,43111.0,0.02706876]
[1642700843942,0.42,43112.0,43111.0,6.876e-05]
[1642700844745,0.422,43112.0,43111.0,0.05006876]
[1642700845946,0.422,43112.0,43111.0,6.876e-05]
[1642700846148,0.42,43112.0,43111.0,6.876e-05]
[1642700846545,0.42,43112.0,43110.0,0.00024796]
[1642700846746,0.42,43112.0,43111.0,0.05706876]
[1642700846747,0.421,43112.0,43111.0,0.05706876]
[1642700847993,0.42,43112.0,43111.0,6.876e-05]
[1642700848895,0.42,43112.0,43111.0,0.06606876]
[1642700850844,0.42,43112.0,43111.0,0.11306876]
[1642700851244,0.42,43112.0,43111.0,0.04706876]
[1642700852147,0.42,43112.0,43111.0,6.876e-05]
[1642700852148,0.798362,43112.0,43111.0,6.876e-05]
[1642700852546,0.798362,43112.0,43110.0,0.00024796]
[1642700852746,0.611956,43111.0,43109.0,0.00107498]
[1642700853045,0.011956,43111.0,43110.0,8.595e-05]
[1642700853445,0.011956,43111.0,43109.0,0.00117812]
[1642700854245,0.011956,43111.0,43109.0,0.00010314]
[1642700854690,0.011956,43111.0,43109.0,0.00026515]
[1642700854886,0.041956,43111.0,43109.0,0.00026515]
[1642700855791,1.15124,43110.0,43103.0,0.0011]
[1642700855990,0.00122813,43104.0,43103.0,0.0012618]
[1642700856188,0.00122813,43104.0,43103.0,0.0011]
[1642700856389,0.01122813,43104.0,43103.0,0.0011]
[1642700856788,0.01422813,43104.0,43103.0,0.0011]
[1642700856990,0.27975954,43104.0,43103.0,0.0011]
[1642700857792,0.013,43104.0,43103.0,0.979462]
[1642700857993,0.01,43104.0,43103.0,0.979462]
[1642700858241,0.01,43104.0,43103.0,0.379462]
[1642700858442,0.01,43104.0,43103.0,0.0011]
[1642700858842,0.011,43104.0,43103.0,0.0011]
[1642700860143,0.01,43104.0,43103.0,0.0011]
[1642700860742,0.011,43104.0,43103.0,0.0011]
[1642700860942,0.011,43104.0,43100.0,0.41869195]
[1642700861344,0.011,43104.0,43101.0,0.00013752]
[1642700862196,0.01,43104.0,43102.0,0.378362]
[1642700862397,0.01,43104.0,43103.0,1.05190668]
[1642700862596,0.01,43104.0,43103.0,1.53037182]
[1642700862797,0.011,43104.0,43103.0,1.27846514]
[1642700862998,0.011,43104.0,43103.0,1.50355066]
[1642700863996,0.01,43104.0,43103.0,1.50355066]
[1642700864196,0.01,43104.0,43103.0,1.27846514]
[1642700864404,0.01123325,43104.0,43103.0,0.00010314]
[1642700864603,0.22090001,43104.0,43103.0,0.00010314]
[1642700864797,0.01123325,43104.0,43103.0,0.00010314]
[1642700865198,0.01,43104.0,43103.0,0.00010314]
[1642700865747,0.01,43104.0,43103.0,0.55010314]
[1642700865945,0.01,43104.0,43103.0,0.92846514]
[1642700866345,0.01,43104.0,43103.0,0.37346514]
[1642700866749,0.011,43104.0,43103.0,0.37346514]
[1642700868049,0.01,43104.0,43103.0,0.37346514]
[1642700868249,0.01,43104.0,43103.0,0.00010314]
[1642700868650,0.01,43104.0,43102.0,0.00012033]
[1642700868850,0.011,43104.0,43102.0,0.00012033]
[1642700869250,0.32380098,43103.0,43102.0,0.00012033]
[1642700870589,0.01,43104.0,43102.0,0.00012033]
[1642700870890,0.002,43103.0,43102.0,0.00020124]
[1642700871090,0.002,43103.0,43102.0,0.00012033]
[1642700871489,0.002,43103.0,43102.0,0.37858933]
[1642700871890,0.002,43103.0,43102.0,0.47858933]
[1642700872095,0.27128121,43104.0,43102.0,0.47858933]
[1642700872290,0.27128121,43104.0,43102.0,0.37858933]
[1642700872490,0.27128121,43104.0,43103.0,0.00010314]
[1642700872891,0.27428121,43104.0,43102.0,0.00012033]
[1642700874152,0.27128121,43104.0,43102.0,0.00012033]
[1642700874349,0.27128121,43104.0,43102.0,0.23012033]
[1642700874550,0.51719121,43104.0,43102.0,0.23012033]
[1642700874755,0.199899,43104.0,43103.0,0.00010314]
[1642700874950,0.199899,43104.0,43103.0,0.00018405]
[1642700875149,0.199899,43104.0,43103.0,0.00010314]
[1642700875351,0.199899,43104.0,43103.0,0.00018405]
[1642700875552,0.649899,43104.0,43103.0,0.00010314]
[1642700875756,0.649899,43104.0,43103.0,0.00018405]
[1642700875952,0.649899,43104.0,43103.0,0.00010314]
[1642700876152,0.647899,43104.0,43103.0,0.00018405]
[1642700876352,0.94379205,43104.0,43103.0,0.00010314]
[1642700876553,0.94379205,43104.0,43103.0,0.00018405]
[1642700876753,0.94579205,43104.0,43103.0,0.00010314]
[1642700877203,0.94579205,43104.0,43100.0,0.10471553]
[1642700877204,1.15,43102.0,43100.0,0.10471553]
[1642700877410,1.15,43102.0,43100.0,0.005]
[1642700877411,0.27032972,43101.0,43100.0,0.005]
[1642700877603,0.49683799,43101.0,43100.0,0.005]
[1642700877805,0.24334127,43101.0,43100.0,0.005]
[1642700878205,0.016833,43101.0,43100.0,0.005]
[1642700878504,0.015343,43101.0,43100.0,0.005]
[1642700878804,0.046343,43101.0,43097.0,0.1192]
[1642700879008,0.75,43100.0,43090.0,0.79087495]
[1642700879204,0.75,43100.0,43098.0,8.595e-05]
[1642700879403,0.778519,43099.0,43098.0,8.595e-05]
[1642700879603,0.378519,43099.0,43094.0,0.00015471]
[1642700879805,0.378519,43099.0,43087.0,0.64949685]
[1642700879806,0.20780223,43097.0,43087.0,0.64949685]
[1642700880008,0.116055,43094.0,43087.0,0.64965664]
[1642700880204,0.116055,43094.0,43088.0,0.37860495]
[1642700880645,0.116055,43094.0,43089.0,6.876e-05]
[1642700880843,0.122055,43094.0,43089.0,0.37959287]
[1642700881142,6.876e-05,43093.0,43089.0,0.37959287]
[1642700881942,6.876e-05,43093.0,43089.0,0.378519]
[1642700882140,6.876e-05,43093.0,43089.0,0.37959287]
[1642700883044,1.65446921,43093.0,43089.0,0.378519]
[1642700883243,1.65446921,43093.0,43089.0,0.00107387]
[1642700883842,1.65446921,43093.0,43089.0,0.23107387]
[1642700884043,1.64846921,43093.0,43089.0,0.23107387]
[1642700884243,1.64846921,43093.0,43089.0,0.23]
[1642700884495,0.23167953,43092.0,43089.0,0.2310723]
[1642700884695,1.64846921,43093.0,43089.0,0.2310723]
[1642700884894,1.65446921,43093.0,43089.0,0.2310723]
[1642700885297,0.00120456,43090.0,43089.0,0.2310723]
[1642700885494,0.00120456,43090.0,43089.0,0.23]
[1642700885694,0.00120456,43090.0,43089.0,0.2310723]
[1642700886096,0.00120456,43090.0,43089.0,0.0010723]
[1642700886693,0.00120456,43090.0,43088.0,0.42]
[1642700886895,0.006,43090.0,43088.0,0.415]
[1642700887994,1.64846921,43093.0,43086.0,0.0022]
[1642700887995,0.058031,43091.0,43086.0,0.0022]
[1642700888248,0.058031,43091.0,43087.0,0.00107285]
[1642700888450,0.11733627,43091.0,43087.0,0.00107285]
[1642700888651,0.378519,43090.0,43087.0,0.00107285]
[1642700888849,0.17502735,43089.0,43087.0,0.00107285]
[1642700889048,0.17502735,43089.0,43086.0,0.0022]
[1642700889248,0.17891989,43088.0,43087.0,0.00107285]
[1642700889652,0.12633627,43091.0,43087.0,0.00107285]
[1642700890151,0.30099358,43091.0,43087.0,0.00115276]
[1642700890355,0.30099358,43091.0,43087.0,7.991e-05]
[1642700890649,0.30099358,43091.0,43087.0,0.00107285]
[1642700890850,0.24310257,43088.0,43087.0,0.00115276]
[1642700891451,0.24310257,43088.0,43087.0,7.991e-05]
[1642700891654,0.24310257,43088.0,43086.0,0.00227991]
[1642700892795,0.24910257,43088.0,43086.0,0.00227991]
[1642700894296,0.24310257,43088.0,43086.0,0.00227991]
[1642700895095,0.24510257,43088.0,43086.0,0.00227991]
[1642700896151,0.24310257,43088.0,43086.0,0.00227991]
[1642700896952,0.24810257,43088.0,43086.0,0.00227991]
[1642700898753,0.24310257,43088.0,43086.0,0.00227991]
[1642700898956,0.73180535,43087.0,43086.0,0.00227991]
[1642700899153,0.878519,43087.0,43086.0,0.00227991]
[1642700899400,1.46291805,43087.0,43086.0,0.00227991]
[1642700899999,1.228519,43087.0,43086.0,0.00227991]
[1642700900200,0.878519,43087.0,43086.0,0.00227991]
[1642700901004,0.396519,43087.0,43086.0,0.00227991]
[1642700901603,0.018,43087.0,43086.0,0.00227991]
[1642700902202,6.876e-05,43093.0,43086.0,0.00227991]
[1642700902504,0.21371567,43093.0,43086.0,0.20227991]
[1642700902903,0.17168925,43087.0,43086.0,0.25327991]
[1642700903149,0.00406876,43093.0,43086.0,0.63179891]
[1642700903350,0.00406876,43093.0,43086.0,0.25327991]
[1642700903756,0.00406876,43093.0,43086.0,0.50739197]
[1642700903953,0.00406876,43093.0,43087.0,0.2]
[1642700904154,0.00406876,43093.0,43087.0,0.20007991]
[1642700904354,0.23549745,43092.0,43087.0,0.20007991]
[1642700904953,0.23549745,43092.0,43088.0,0.00107272]
[1642700905253,0.23549745,43092.0,43088.0,0.00115263]
[1642700905952,0.23549745,43092.0,43088.0,7.991e-05]
[1642700906158,0.23549745,43092.0,43088.0,0.00107272]
[1642700906352,6.876e-05,43093.0,43088.0,0.00115263]
[1642700907002,6.876e-05,43093.0,43089.0,0.2]
[1642700907201,0.31636494,43095.0,43093.0,3.21e-06]
[1642700907401,0.378519,43094.0,43093.0,3.21e-06]
[1642700908007,11.66773007,43103.0,43093.0,3.21e-06]
[1642700908304,0.00012033,43100.0,43093.0,3.21e-06]
[1642700908604,0.01538814,43099.0,43093.0,3.21e-06]
[1642700909003,8.595e-05,43098.0,43094.0,0.2]
[1642700909203,8.595e-05,43098.0,43094.0,0.43337569]
[1642700909401,6.876e-05,43097.0,43094.0,0.4334556]
[1642700909603,6.876e-05,43097.0,43094.0,0.5334556]
[1642700909803,0.00010314,43099.0,43094.0,0.43452823]
[1642700910003,0.378519,43098.0,43094.0,0.20115254]
[1642700910304,6.876e-05,43097.0,43094.0,0.20115254]
[1642700910505,0.015285,43096.0,43094.0,0.20107263]
[1642700910754,0.015285,43096.0,43094.0,0.2]
[1642700910954,0.015285,43096.0,43094.0,0.27207263]
[1642700911956,0.015285,43096.0,43094.0,0.271]
[1642700912256,0.015285,43096.0,43094.0,0.2]
[1642700912454,0.015285,43096.0,43094.0,0.20007991]
[1642700912855,0.015285,43096.0,43094.0,0.27607991]
[1642700913255,0.015285,43096.0,43094.0,0.276]
[1642700913455,0.015285,43096.0,43094.0,0.27607991]
[1642700913858,0.015285,43096.0,43094.0,0.27107991]
[1642700914255,0.015285,43096.0,43094.0,0.19507991]
[1642700914502,0.015285,43096.0,43094.0,0.195]
[1642700914707,0.015285,43096.0,43094.0,0.19507991]
[1642700914904,0.015285,43096.0,43094.0,0.26807991]
[1642700915805,0.015285,43096.0,43094.0,0.268]
[1642700916005,0.015285,43096.0,43094.0,0.26807991]
[1642700916207,0.015285,43096.0,43094.0,0.19507991]
[1642700916907,0.017285,43096.0,43094.0,0.26407991]
[1642700917308,0.002,43096.0,43094.0,0.26407991]
[1642700918156,0.002,43096.0,43094.0,0.264]
[1642700918358,0.41524082,43103.0,43095.0,1.723519]
[1642700918359,0.00106417,43103.0,43095.0,1.723519]
[1642700918560,0.00106417,43103.0,43098.0,0.195]
[1642700918757,0.00106417,43103.0,43097.0,0.44791822]
[1642700918758,0.00106417,43103.0,43102.0,0.00122017]
[1642700919062,0.00710314,43103.0,43102.0,0.83156421]
[1642700919455,0.00816751,43103.0,43102.0,0.83156421]
[1642700920256,0.00010314,43103.0,43102.0,0.83156421]
[1642700920861,0.00010314,43103.0,43102.0,0.86956421]
[1642700922198,0.00010314,43103.0,43102.0,0.83156421]
[1642700923000,0.00010314,43103.0,43102.0,0.96156421]
[1642700923600,0.00010314,43103.0,43102.0,0.38682504]
[1642700923801,0.00010314,43103.0,43102.0,0.76659348]
[1642700924204,0.00010314,43103.0,43102.0,0.73659348]
[1642700924401,0.00010314,43103.0,43102.0,0.78659348]
[1642700924805,0.00010314,43103.0,43102.0,1.09851009]
[1642700925003,0.00010314,43103.0,43102.0,1.31459348]
[1642700926252,0.00010314,43103.0,43102.0,1.28659348]
[1642700926856,0.00010314,43103.0,43102.0,1.31759348]
[1642700927654,0.00010314,43103.0,43102.0,0.86759348]
[1642700927855,0.00010314,43103.0,43102.0,1.12230119]
[1642700928854,0.00010314,43103.0,43102.0,1.12130119]
[1642700929415,0.00010314,43103.0,43102.0,1.07130119]
[1642700929614,0.00010314,43103.0,43102.0,1.12130119]
[1642700930413,0.00010314,43103.0,43102.0,1.09130119]
[1642700931013,0.00010314,43103.0,43102.0,1.12230119]
[1642700931516,0.00010314,43103.0,43102.0,1.32230119]
[1642700931920,0.00010314,43103.0,43102.0,1.92230119]
[1642700932314,0.00010314,43103.0,43102.0,1.09130119]
[1642700932515,0.00010314,43103.0,43102.0,1.29130119]
[1642700932716,0.00010314,43103.0,43102.0,1.69130119]
[1642700932916,0.00010314,43103.0,43102.0,1.72630119]
[1642700933853,0.00010314,43103.0,43102.0,1.72257958]
[1642700934251,0.00010314,43103.0,43102.0,1.68757958]
[1642700935052,0.00010314,43103.0,43102.0,1.71857958]
[1642700935653,0.00010314,43103.0,43102.0,1.53007958]
[1642700936254,0.00010314,43103.0,43102.0,1.49907958]
[1642700937105,0.00010314,43103.0,43102.0,1.12907958]
[1642700937700,0.00010314,43103.0,43102.0,1.07907958]
[1642700938104,0.00010314,43103.0,43102.0,0.61226844]
[1642700938303,0.00010314,43103.0,43102.0,0.585977]
[1642700938901,0.00010314,43103.0,43102.0,0.656977]
[1642700939303,0.00010314,43103.0,43102.0,0.506977]
[1642700939505,0.00010314,43103.0,43102.0,0.1285]
[1642700939709,0.0771215,43103.0,43102.0,0.071]
[1642700939905,0.00010314,43103.0,43102.0,0.071]
[1642700940307,0.37858014,43103.0,43096.0,0.00107263]
[1642700940505,0.00010314,43103.0,43096.0,0.17283053]
[1642700940762,8.595e-05,43102.0,43096.0,0.1717579]
[1642700940963,8.595e-05,43102.0,43096.0,0.22883053]
[1642700941163,6.876e-05,43101.0,43096.0,0.22883053]
[1642700941663,8.595e-05,43102.0,43096.0,0.27883053]
[1642700941863,8.595e-05,43102.0,43096.0,0.2777579]
[1642700942063,6.876e-05,43101.0,43096.0,0.27883048]
[1642700942267,6.876e-05,43101.0,43096.0,0.22283048]
[1642700942462,8.595e-05,43102.0,43096.0,0.22283048]
[1642700942865,6.876e-05,43101.0,43096.0,0.22283048]
[1642700943065,6.876e-05,43101.0,43097.0,0.378477]
[1642700943265,0.00308595,43102.0,43097.0,0.378477]
[1642700943768,6.876e-05,43101.0,43097.0,0.61407916]
[1642700943967,6.876e-05,43101.0,43097.0,1.09417075]
[1642700944805,6.876e-05,43101.0,43097.0,1.05219423]
[1642700945001,6.876e-05,43101.0,43099.0,0.15060261]
[1642700945203,6.876e-05,43101.0,43100.0,1.5129557]
[1642700945402,6.876e-05,43101.0,43100.0,1.61423369]
[1642700945605,6.876e-05,43101.0,43100.0,1.66423369]
[1642700946901,6.876e-05,43101.0,43100.0,1.76168174]
[1642700947102,6.876e-05,43101.0,43100.0,1.69723369]
[1642700947305,6.876e-05,43101.0,43100.0,1.74467961]
[1642700947701,6.876e-05,43101.0,43100.0,1.79467961]
[1642700947901,6.876e-05,43101.0,43100.0,0.89467961]
[1642700948155,6.876e-05,43101.0,43100.0,0.52975499]
[1642700948357,6.876e-05,43101.0,43100.0,0.76403905]
[1642700948756,6.876e-05,43101.0,43100.0,0.71276106]
[1642700948957,6.876e-05,43101.0,43100.0,0.74176106]
[1642700950155,6.876e-05,43101.0,43100.0,0.71276106]
[1642700951057,6.876e-05,43101.0,43100.0,0.73876106]
[1642700952308,6.876e-05,43101.0,43100.0,0.71276106]
[1642700953110,6.876e-05,43101.0,43100.0,0.73576106]
[1642700954310,6.876e-05,43101.0,43100.0,0.71276106]
[1642700954711,6.876e-05,43101.0,43100.0,1.11276106]
[1642700955213,6.876e-05,43101.0,43100.0,1.13576106]
[1642700955410,6.876e-05,43101.0,43100.0,1.19375406]
[1642700955650,6.876e-05,43101.0,43100.0,1.23496439]
[1642700955851,6.876e-05,43101.0,43100.0,1.27982686]
[1642700956051,0.00981847,43104.0,43101.0,0.85]
[1642700956251,0.00981847,43104.0,43102.0,0.378477]
[1642700956451,0.00981847,43104.0,43102.0,0.428477]
[1642700956651,0.00106432,43103.0,43102.0,0.528477]
[1642700956851,0.00106432,43103.0,43102.0,0.68959514]
[1642700957053,0.00106432,43103.0,43102.0,0.71959514]
[1642700957652,0.00981847,43104.0,43102.0,0.71959514]
[1642700958251,0.00981847,43104.0,43102.0,0.68959514]
[1642700958852,0.00981847,43104.0,43102.0,0.63959514]
[1642700959053,0.00981847,43104.0,43102.0,0.66159514]
[1642700960708,0.00981847,43104.0,43102.0,0.71159514]
[1642700960906,0.00981847,43104.0,43102.0,0.68959514]
[1642700961107,0.00981847,43104.0,43102.0,0.71252867]
[1642700963161,0.00981847,43104.0,43102.0,0.72052867]
[1642700963357,0.00981847,43104.0,43102.0,1.31122219]
[1642700963857,0.00981847,43104.0,43102.0,0.72052867]
[1642700964657,0.00981847,43104.0,43102.0,0.72059514]
[1642700964859,0.00981847,43104.0,43102.0,0.68959514]
[1642700965059,0.00981847,43104.0,43102.0,0.72759514]
[1642700966365,0.00981847,43104.0,43102.0,0.68959514]
[1642700966562,0.01,43103.0,43102.0,0.528477]
[1642700966762,0.01,43103.0,43102.0,0.478477]
[1642700967003,0.01,43103.0,43102.0,0.504477]
[1642700968204,0.01,43103.0,43102.0,0.478477]
[1642700968607,0.01,43103.0,43102.0,0.928477]
[1642700968807,0.01,43103.0,43102.0,1.83985079]
[1642700969007,0.01,43103.0,43102.0,1.87185079]
[1642700969208,0.01,43103.0,43102.0,0.54600857]
[1642700969607,0.01,43103.0,43102.0,1.13670209]
[1642700970306,0.01,43103.0,43102.0,1.10470209]
[1642700970760,0.01,43103.0,43102.0,1.11917052]
[1642700971156,0.01,43103.0,43102.0,1.14517052]
[1642700971360,0.01,43103.0,43102.0,0.554477]
[1642700971655,0.01,43103.0,43102.0,1.18023025]
[1642700971856,0.01,43103.0,43102.0,1.54517052]
[1642700972257,0.01,43103.0,43102.0,0.528477]
[1642700973058,0.01,43103.0,43102.0,0.562477]
[1642700974259,0.01,43103.0,43102.0,0.528477]
[1642700975010,0.01,43103.0,43102.0,0.554477]
[1642700975211,0.00948414,43103.0,43102.0,0.554477]
[1642700975912,0.00948414,43103.0,43102.0,0.504477]
[1642700976412,0.00948414,43103.0,43102.0,0.478477]
[1642700977014,0.00948414,43103.0,43102.0,0.501477]
[1642700978255,0.00948414,43103.0,43102.0,0.478477]
[1642700979051,0.00948414,43103.0,43102.0,0.501477]
[1642700979452,0.00948414,43103.0,43102.0,0.123]
[1642700979654,0.00948414,43103.0,43102.0,0.023]
[1642700980353,0.00948414,43103.0,43098.0,0.55]
[1642700980554,0.00948414,43103.0,43099.0,0.378477]
[1642700980953,0.00948414,43103.0,43099.0,0.478477]
[1642700981152,0.00948414,43103.0,43099.0,0.530477]
[1642700982410,0.00948414,43103.0,43099.0,0.478477]
[1642700982607,0.00948414,43103.0,43099.0,0.528477]
[1642700982905,0.00948414,43103.0,43102.0,0.1]
[1642700984308,0.00948414,43103.0,43102.0,0.05114604]
[1642700985105,0.00948414,43103.0,43102.0,0.11314604]
[1642700986358,0.00948414,43103.0,43102.0,0.05114604]
[1642700986561,0.01948414,43103.0,43102.0,0.05114604]
[1642700987258,0.01948414,43103.0,43102.0,0.11314604]
[1642700988458,0.01948414,43103.0,43102.0,0.05114604]
[1642700989259,0.01948414,43103.0,43102.0,0.10514604]
[1642700989509,0.02071337,43103.0,43102.0,0.10514604]
[1642700990306,0.02071337,43103.0,43102.0,0.05114604]
[1642700991111,0.02271337,43103.0,43102.0,0.08214604]
[1642700991407,0.02148414,43103.0,43102.0,0.08214604]
[1642700992407,0.01948414,43103.0,43102.0,0.05114604]
[1642700993256,0.02148414,43103.0,43102.0,0.07114604]
[1642700994458,0.02148414,43103.0,43102.0,0.32753007]
[1642700995059,0.02148414,43103.0,43102.0,0.80600707]
[1642700995260,0.02248414,43103.0,43102.0,0.82800707]
[1642700995462,0.02248414,43103.0,43102.0,1.1106155]
[1642700995660,0.02248414,43103.0,43102.0,1.31150774]
[1642700995861,0.01948414,43103.0,43102.0,1.28950774]
[1642700997309,0.01948414,43103.0,43102.0,1.31750774]
[1642700998011,0.00105637,43105.0,43103.0,1.728477]
[1642700998212,0.00105637,43105.0,43104.0,1.45176072]
[1642700998412,0.0002059,43111.0,43104.0,1.57453944]
[1642700998612,0.42,43112.0,43106.0,0.057987]
[1642700998813,0.0002059,43111.0,43109.0,0.4]
[1642700999013,0.0003778,43111.0,43110.0,0.71346787]
[1642700999313,0.0003778,43111.0,43110.0,0.31353031]
[1642700999516,0.0001719,43111.0,43110.0,0.31353031]
[1642700999713,0.0101719,43111.0,43110.0,0.31353031]
[1642701001053,0.0101719,43111.0,43110.0,0.41353031]
[1642701001254,0.3886489,43111.0,43110.0,0.11506244]
[1642701001856,0.62806352,43111.0,43110.0,0.11506244]
[1642701002060,1.07806352,43111.0,43110.0,0.11506244]
[1642701002254,0.62806352,43111.0,43110.0,0.11506244]
[1642701002553,0.3886489,43111.0,43110.0,0.10006244]
[1642701003654,0.59118057,43111.0,43110.0,0.10006244]
[1642701003854,0.78078622,43111.0,43110.0,0.10006244]
[1642701004054,1.63078622,43111.0,43110.0,0.10006244]
[1642701004253,1.73078622,43111.0,43110.0,0.10006244]
[1642701004505,1.68078622,43111.0,43110.0,0.10006244]
[1642701004904,1.79909018,43111.0,43110.0,0.10006244]
[1642701005104,0.94909018,43111.0,43110.0,0.10006244]
[1642701005304,0.64118057,43111.0,43110.0,0.10006244]
[1642701005703,0.4386489,43111.0,43110.0,0.10006244]
[1642701006706,0.60144759,43111.0,43110.0,0.10006244]
[1642701007707,0.60144759,43111.0,43110.0,0.02990769]
[1642701008007,0.60144759,43111.0,43101.0,0.1]
[1642701008008,0.79155884,43111.0,43101.0,0.1]
[1642701008257,0.1996019,43106.0,43101.0,0.10006244]
[1642701008661,6.876e-05,43105.0,43101.0,0.10006244]
[1642701009259,6.876e-05,43105.0,43101.0,0.16006244]
[1642701009460,0.00112509,43105.0,43101.0,0.16006244]
[1642701010460,0.08852876,43105.0,43101.0,0.10006244]
[1642701010670,0.00128578,43102.0,43101.0,0.10006244]
[1642701010860,0.00128578,43102.0,43101.0,0.09016244]
[1642701011063,1.43422965,43102.0,43101.0,0.09016244]
[1642701011260,0.89448946,43102.0,43101.0,0.09416244]
[1642701011462,1.21076354,43102.0,43101.0,0.09416244]
[1642701012517,1.21076354,43102.0,43101.0,0.09016244]
[1642701012815,1.16076354,43102.0,43101.0,0.09016244]
[1642701013214,1.15,43101.0,43100.0,0.2]
[1642701013417,1.7492021,43101.0,43098.0,0.00107341]
[1642701013616,1.15,43098.0,43093.0,3.21e-06]
[1642701013820,0.37975509,43094.0,43093.0,3.21e-06]
[1642701014016,1.06617628,43094.0,43093.0,3.21e-06]
[1642701014315,0.81064184,43094.0,43093.0,3.21e-06]
[1642701014514,0.99592191,43094.0,43093.0,3.21e-06]
[1642701014914,0.99592191,43094.0,43090.0,0.00429452]
[1642701015121,1.22976052,43091.0,43087.0,7.991e-05]
[1642701015315,1.22976052,43091.0,43086.0,0.0022]
[1642701015316,0.45742335,43089.0,43086.0,0.00227991]
[1642701015516,0.377957,43088.0,43086.0,0.00227991]
[1642701015764,0.377957,43088.0,43087.0,0.00024066]
[1642701015964,0.68694087,43088.0,43087.0,0.00032057]
[1642701016965,0.69694087,43088.0,43087.0,0.00032057]
[1642701017163,0.71394087,43088.0,43087.0,0.00032057]
[1642701017364,0.61394087,43088.0,43087.0,0.00032057]
[1642701017768,0.354957,43088.0,43087.0,0.00032057]
[1642701017967,0.5910111,43088.0,43087.0,0.00032057]
[1642701018365,0.5740111,43088.0,43087.0,0.00032057]
[1642701018767,1.15,43086.0,43072.0,0.6751404]
[1642701018973,1.15,43086.0,43069.0,0.01005351]
[1642701018974,0.00128001,43076.0,43069.0,0.01005351]
[1642701019170,0.00128001,43076.0,43073.0,0.00024067]
[1642701019171,0.00124244,43074.0,43073.0,0.00024067]
[1642701019414,0.97768414,43074.0,43073.0,0.00024067]
[1642701019614,0.57767298,43073.0,43069.0,0.00529418]
[1642701019914,0.57767298,43073.0,43068.0,0.00546305]
[1642701019915,0.26856081,43070.0,43068.0,0.00546305]
[1642701020116,0.26856081,43070.0,43052.0,0.58794243]
[1642701020117,0.95,43068.0,43052.0,0.58794243]
[1642701020317,0.05806026,43066.0,43065.0,0.00389671]
[1642701020513,0.48265626,43066.0,43065.0,0.00389671]
[1642701020714,0.67664653,43066.0,43065.0,0.00389671]
[1642701020914,0.91221337,43066.0,43065.0,0.00389671]
[1642701021114,0.91221337,43066.0,43065.0,0.023]
[1642701021314,1.05,43065.0,43063.0,0.00097431]
[1642701021514,0.61951944,43064.0,43063.0,0.00097431]
[1642701021914,0.93655121,43064.0,43063.0,0.00097431]
[1642701022114,0.93655121,43064.0,43053.0,0.00284184]
[1642701022115,1.15,43062.0,43053.0,0.00284184]
[1642701022315,0.00128904,43055.0,43053.0,0.00284184]
[1642701022513,0.00128904,43055.0,43054.0,0.00032661]
[1642701022715,0.5702668,43055.0,43054.0,0.00032661]
[1642701023159,0.62653602,43055.0,43054.0,0.00032661]
[1642701023561,0.40882658,43055.0,43054.0,0.00032661]
[1642701023763,0.35075326,43055.0,43054.0,0.00032661]
[1642701023963,0.00274,43055.0,43054.0,0.00032661]
[1642701024364,0.00126599,43061.0,43054.0,0.00032661]
[1642701024564,0.378724,43060.0,43054.0,0.24152332]
[1642701024765,0.00126599,43061.0,43054.0,0.24152332]
[1642701024966,0.00126599,43061.0,43055.0,0.00030942]
[1642701025164,0.380724,43060.0,43055.0,0.00030942]
[1642701025365,0.002,43060.0,43055.0,0.00030942]
[1642701025964,0.0580642,43062.0,43055.0,0.00030942]
[1642701025965,0.378724,43061.0,43055.0,0.00030942]
[1642701026164,0.00119147,43060.0,43055.0,0.00124046]
[1642701026364,0.339326,43059.0,43055.0,0.00124046]
[1642701026565,0.23949357,43060.0,43053.0,0.26760064]
[1642701026768,0.00119147,43060.0,43053.0,0.26760064]
[1642701027017,0.00119147,43060.0,43054.0,0.45255021]
[1642701027018,0.05806902,43059.0,43054.0,0.45255021]
[1642701027225,0.002,43060.0,43055.0,0.03614087]
[1642701027617,0.002,43060.0,43057.0,0.0475606]
[1642701027817,0.002,43060.0,43058.0,0.66497021]
[1642701028017,0.002,43060.0,43059.0,1.1222078]
[1642701028220,0.002,43060.0,43059.0,0.378724]
[1642701028417,6.876e-05,43060.0,43055.0,0.058056]
[1642701028619,6.876e-05,43060.0,43056.0,0.378724]
[1642701028820,6.876e-05,43060.0,43056.0,0.424724]
[1642701029218,6.876e-05,43060.0,43056.0,0.098]
[1642701029620,6.876e-05,43060.0,43057.0,0.29437445]
[1642701029820,0.00073597,43060.0,43059.0,1.1993053]
[1642701030021,0.01,43064.0,43060.0,0.03500485]
[1642701030221,0.01,43064.0,43062.0,0.04431856]
[1642701030423,0.01,43064.0,43063.0,1.278724]
[1642701030667,0.01,43064.0,43063.0,1.86698414]
[1642701030874,0.96346876,43073.0,43064.0,1.15]
[1642701031066,0.00124896,43075.0,43065.0,0.04615528]
[1642701031267,0.00013752,43072.0,43066.0,0.04406835]
[1642701031469,0.00013752,43072.0,43067.0,0.046]
[1642701031666,0.00012033,43071.0,43067.0,0.046]
[1642701032067,0.00010314,43070.0,43067.0,0.046]
[1642701032467,8.595e-05,43069.0,43067.0,0.046]
[1642701032868,6.876e-05,43068.0,43066.0,0.00015528]
[1642701033168,0.00015471,43073.0,43067.0,0.048]
[1642701034169,0.00015471,43073.0,43067.0,0.04815528]
[1642701034405,0.00015471,43073.0,43068.0,0.04723624]
[1642701034610,0.00015471,43073.0,43069.0,0.31765356]
[1642701034611,0.00119132,43072.0,43069.0,0.31765356]
[1642701034807,0.00119132,43072.0,43070.0,0.424724]
[1642701035006,0.00012033,43071.0,43070.0,0.52487928]
[1642701035208,0.00012033,43071.0,43070.0,0.87587994]
[1642701035411,0.00012033,43071.0,43070.0,0.97587994]
[1642701035706,0.00012033,43071.0,43070.0,1.37587994]
[1642701036107,0.00012033,43071.0,43070.0,0.87587994]
[1642701036310,0.00012033,43071.0,43070.0,1.07625916]
[1642701036707,0.00012033,43071.0,43070.0,0.42487928]
[1642701036907,0.00012033,43071.0,43070.0,0.046]
[1642701037110,0.00012033,43071.0,43070.0,0.29284915]
[1642701037308,0.00012033,43071.0,43070.0,0.38384915]
[1642701037607,0.00012033,43071.0,43070.0,0.60252159]
[1642701037806,0.00012033,43071.0,43070.0,0.79576351]
[1642701038263,0.00012033,43071.0,43070.0,1.29055251]
[1642701038467,0.00012033,43071.0,43070.0,1.49970779]
[1642701038663,0.00012033,43071.0,43070.0,2.64970779]
[1642701039062,0.0012987,43086.0,43081.0,0.56707859]
[1642701039265,0.9799,43091.0,43082.0,0.31385209]
[1642701039466,1.254027,43099.0,43083.0,1.528724]
[1642701039467,1.18750247,43099.0,43083.0,1.528724]
[1642701039664,1.18750247,43099.0,43085.0,0.00123056]